{"text_format":"1","workbook":"xlsx","n_sheets":2,"sheets":["UNIÃO - comum","juntada RRA"],"not_rendered":{"charts":0,"images":0,"macros":1,"external_links":0,"defined_names":25,"comments":0,"pivot_tables":0},"unopened":[],"bounds":{"document_bytes":16777216,"sheet_cells":100000,"rows_first":2000,"rows_last":500,"rows_between":2000,"halvings":0,"cell_chars":16384,"cell_head_chars":4096},"cells_cut":0,"cells_raw":0,"read":"whole","date_system":"1900"}

{"sheet":"UNIÃO - comum","index":0,"n_rows":12,"n_cols":49,"rows_kept":12,"cut":false,"hidden":false,"merged":[[5,5,7,5],[1,1,1,8],[2,1,2,8],[3,1,3,8],[4,1,4,2],[4,3,4,7],[5,0,7,0],[5,1,7,1],[5,2,7,2],[5,3,7,3],[5,4,7,4],[6,24,6,26],[6,27,6,29],[5,6,7,6],[5,7,7,7],[5,8,7,8],[5,9,7,9],[5,10,7,10],[5,11,7,11],[6,47,6,48],[11,1,11,3],[6,30,6,31],[6,32,6,34],[6,35,6,37],[6,38,6,40],[6,41,6,43],[6,44,6,46],[5,12,7,12],[5,13,7,13],[5,14,5,31],[5,32,5,48],[6,14,7,14],[6,15,6,17],[6,18,6,20],[6,21,6,23]]}
[]
[null,"Coordenadoria de Processamento de Feitos em Execução Judicial"]
[null,"Seção de Precatórios e RPVs"]
[null,{"$f":"\"Relatório dos precatórios enviados  para PAGAMENTO em \"&TEXT(E10,\"MMMM\")&\" de \"&YEAR(E10)","v":"Relatório dos precatórios enviados  para PAGAMENTO em setembro de 2021"}]
[null,"Entidade devedora :",null,{"$f":"K10","v":"UNIÃO"},null,null,null,null,{"$f":"\"Natureza : \"&M10","v":"Natureza : Comum"}]
["sequencial","tipo","Nº","data da autuação","DATA DO PGTO","processo de origem","data da autuação","trânsito em julgado","tipo de causa","órgão de origem","entidade devedora","origem do crédito reqte","natureza do crédito","origem do crédito advogado","VALORES   INCLUSOS   NA   PROPOSTA 2021",null,null,null,null,null,null,null,null,null,null,null,null,null,null,null,null,null,"VALOR ATUALIZADO PARA PAGAMENTO"]
[null,null,null,null,null,null,null,null,null,null,null,null,null,null,"data base","T O T A L",null,null,"ADV I",null,null,"ADV   II",null,null,"REQUERENTE",null,null,"PSSS",null,null,"RRA",null,"T O T A L",null,null,"ADV   I",null,null,"ADV   II",null,null,"REQUERENTE",null,null,"P S S",null,null,"R R A"]
[null,null,null,null,null,null,null,null,null,null,null,null,null,null,null,"principal","juros","total","principal","juros","total","principal","juros","total","principal","juros","total","Base","Desconto","Patronal","exercícios anteriores","Dedução","principal","juros","total","principal","juros","total","principal","juros","total","principal","juros","total","Base","Desconto","Patronal","exercícios anteriores","Dedução"]
[]
[1,"PRC",4840,"2019-05-09","2021-09-01","MS 15.678/DF","2010-09-24","2017-12-04","Administrativo - Militar - Regime - Anistia Política","Ministério da Defesa","UNIÃO","Anistia Política - Reparação Econômica","Comum","Dedução de Honorários Contratuais","2019-07-01",190217.52,0,190217.52,28532.62,0,28532.62,0,0,0,161684.9,0,161684.9,0,0,0,0,0,213023.96000000002,0,213023.96000000002,31953.58,0,31953.58,0,0,0,181070.38,0,181070.38,0,0,0,0,0]
[]
[{"$f":"COUNT(A1:A10)","v":1},"PRECATÓRIOS PAGOS",null,null,null,null,null,null,null,null,null,null,null,null,null,null,"Total incluso na proposta",{"$f":"TRUNC(SUM(R1:R10),2)","v":190217.52},null,null,null,null,null,null,null,null,null,null,null,null,null,"Totais pagos",{"$f":"TRUNC(SUM(AG1:AG10),2)","v":213023.96},0,213023.96,31953.58,0,31953.58,0,0,0,181070.38,0,181070.38]

{"sheet":"juntada RRA","index":1,"n_rows":20,"n_cols":7,"rows_kept":20,"cut":false,"hidden":true,"merged":[[1,6,1,7],[19,5,19,22],[18,5,18,22],[14,5,14,22],[6,5,6,22],[8,5,8,22],[12,5,12,22],[16,5,16,22]]}
[{"$f":"NOW()","v":"2021-09-27T15:28:06.500"}]
[{"$f":"VLOOKUP(A8,basePRC,3)","v":{"$error":"#REF!"}},null,null,null,null,"PRC",{"$f":"#REF!","v":{"$error":"#REF!"}}]
[]
[]
[]
[]
["Sequencial : ",null,null,null,null,"Superior Tribunal de Justiça"]
[{"$f":"#REF!","v":{"$error":"#REF!"}}]
[null,null,null,null,null,{"$f":"IF(A2=\"RPV\",\"Requisição de Pequeno Valor\",IF(A2=\"PRC\",\"Precatório\",\"\"))&\"  \"&VLOOKUP(A8,basePRC,4)&\"/DF\"&\"       Registro (\"&VLOOKUP(A8,basePRC,5)&\")\"","v":{"$error":"#REF!"}}]
[]
[]
[]
[null,null,null,null,null,"JUNTADA"]
[]
[null,null,null,null,null,{"$f":"\"                          Junto a estes autos cópia das planilhas de cálculo que deram origem aos valores do processo em epígrafe, extraída da Exe\"&VLOOKUP(A8,basePRC,8)&\" (\"&VLOOKUP(A8,basePRC,12)&\"), para fins de comprovação do número de meses a que se refere o montante requisitado, por se tratar de verba relativa a rendimentos recebidos acumuladamente (RRA).\"","v":{"$error":"#REF!"}}]
[]
[null,null,null,null,null,{"$f":"\"Brasília, \"&DAY(A1)&\" de \"&TEXT(A1,\"mmmm\")&\" de \"&YEAR(A1)&\".\"","v":"Brasília, 27 de setembro de 2021."}]
[]
[null,null,null,null,null,"Seção de Precatórios e RPV"]
[null,null,null,null,null,"Coordenadoria de Execução Judicial"]